[Event "Elegant 1st Division League 2024"]
[Site "Dhaka"]
[Date "2024.07.18"]
[Round "8.11"]
[White "Bivor Adak"]
[Black "S M Sharon"]
[Result "1-0"]
[Annotator "RC"]
[ECO "B07"]
[WhiteElo "1967"]
[BlackElo "2047"]
[PlyCount "59"]
[EventDate "2024.07.10"]
[EventType "team-tourn"]
[EventCountry "BAN"]
[SourceTitle "playchess.com"]
[Source "ChessBase"]
[SourceQuality "1"]
[TimeControl "5400+30"]

1. e4 {[%emt 0:00:38]} d6 {[%emt 0:01:03]} 2. d4 {[%emt 0:00:42]} Nd7 {[%emt 0:02:34]} 3. Nc3 {[%emt 0:00:59]} e5 {[%emt 0:00:23]} 4. f4 {[%emt 0:01:41]} exf4 {[%emt 0:04:08]} 5. Bxf4 {[%emt 0:00:28]} g6 {[%emt 0:00:49]} 6. Nf3 {[%emt 0:01:19]} Bg7 {[%emt 0:00:01]} 7. Bc4 {[%emt 0:01:46]} Ngf6 {[%emt 0:01:44]} 8. e5 {[%emt 0:04:37]} dxe5 {[%emt 0:04:58]} 9. dxe5 {[%emt 0:00:30]} Qe7 {[%emt 0:00:18]} 10. Qe2 {[%emt 0:00:04]} Nh5 {[%emt 0:06:37]} 11. Bg5 {[%emt 0:00:08]} Qb4 {[%emt 0:02:36]} 12. e6 {[%emt 0:01:49]} O-O {[%emt 0:04:55]} 13. exd7 {[%emt 0:01:04]} Bxc3+ {[%emt 0:02:11]} 14. bxc3 {[%emt 0:00:07]} Qxc3+ {[%emt 0:00:06]} 15. Kf2 {[%emt 0:00:21]} Bxd7 {[%emt 0:00:11]} 16. Qd3 {[%emt 0:00:27]} Qxd3 {[%emt 0:04:07]} 17. Bxd3 {[%emt 0:00:23]} Be6 {[%emt 0:00:42]} 18. Rhe1 {[%emt 0:00:15]} Rfe8 {[%emt 0:00:35]} 19. Nd4 {[%emt 0:00:07]} Bd5 {[%emt 1:02:02]} 20. c4 {[%emt 0:00:55]} f6 {[%emt 0:00:00]} 21. cxd5 {[%emt 0:00:19]} fxg5 {[%emt 0:00:00]} 22. Ne6 {[%emt 0:00:08]} Nf4 {[%emt 0:00:00]} 23. Nxf4 {[%emt 0:00:19]} gxf4 {[%emt 0:00:00]} 24. Bb5 {[%emt 0:00:58]} Rxe1 {[%emt 0:00:00]} 25. Rxe1 {[%emt 0:00:06]} a6 {[%emt 0:00:00]} 26. Ba4 {[%emt 0:00:05]} Rd8 {[%emt 0:00:00]} 27. Re7 {[%emt 0:01:27]} Rxd5 {[%emt 0:00:00]} 28. Bb3 {[%emt 0:00:06]} Kf8 {[%emt 0:00:00]} 29. Rxc7 {[%emt 0:00:04]} Rh5 {[%emt 0:00:00]} 30. h3 {[%emt 0:00:29]} 1-0

[Event "Elegant 1st Division League 2024"]
[Site "Dhaka"]
[Date "2024.07.18"]
[Round "8.12"]
[White "Sacchu, Afzal Hossain"]
[Black "Md Nurul Islam, Mahin"]
[Result "0-1"]
[Annotator "RC"]
[ECO "E12"]
[WhiteElo "1981"]
[BlackElo "1833"]
[PlyCount "118"]
[EventDate "2024.07.10"]
[EventType "team-tourn"]
[EventCountry "BAN"]
[SourceTitle "playchess.com"]
[Source "ChessBase"]
[SourceQuality "1"]
[TimeControl "5400+30"]

1. d4 {[%emt 0:00:06]} Nf6 {[%emt 0:01:34]} 2. c4 {[%emt 0:00:07]} e6 {[%emt 0:00:08]} 3. Nf3 {[%emt 0:00:15]} b6 {[%emt 0:00:33]} 4. a3 {[%emt 0:00:30]} Bb7 {[%emt 0:00:10]} 5. e3 {[%emt 0:00:14]} d5 {[%emt 0:04:58]} 6. Nc3 {[%emt 0:00:23]} Bd6 {[%emt 0:01:53]} 7. b4 {[%emt 0:01:31]} c6 {[%emt 0:02:58]} 8. c5 {[%emt 0:02:18]} Bc7 {[%emt 0:00:27]} 9. Bd3 {[%emt 0:03:34]} O-O {[%emt 0:00:13]} 10. Qc2 {[%emt 0:02:23]} h6 {[%emt 0:01:16]} 11. Bb2 {[%emt 0:03:59]} Nbd7 {[%emt 0:00:14]} 12. Ne2 {[%emt 0:01:55]} Rc8 {[%emt 0:00:14]} 13. h3 {[%emt 0:00:35]} Re8 {[%emt 0:00:39]} 14. Ne5 {[%emt 0:00:43]} Nxe5 {[%emt 0:01:04]} 15. dxe5 {[%emt 0:00:53]} Nd7 {[%emt 0:00:27]} 16. f4 {[%emt 0:00:36]} Qe7 {[%emt 0:00:51]} 17. Rc1 {[%emt 0:01:09]} Bd8 {[%emt 0:04:19]} 18. O-O {[%emt 0:00:54]} a5 {[%emt 0:01:35]} 19. Kh2 {[%emt 0:01:45]} axb4 {[%emt 0:00:59]} 20. axb4 {[%emt 0:00:02]} bxc5 {[%emt 0:00:31]} 21. bxc5 {[%emt 0:00:02]} Ra8 {[%emt 0:00:41]} 22. Ra1 {[%emt 0:01:18]} Rxa1 {[%emt 0:01:46]} 23. Rxa1 {[%emt 0:00:11]} Qxc5 {[%emt 0:01:06]} 24. Qb3 {[%emt 0:02:25]} Qb6 {[%emt 0:00:24]} 25. Qa2 {[%emt 0:00:42]} Qxe3 {[%emt 0:01:27]} 26. Qa7 {[%emt 0:00:47]} Qb6 {[%emt 0:01:57]} 27. Bc3 {[%emt 0:00:51]} Qxa7 {[%emt 0:05:00]} 28. Rxa7 {[%emt 0:00:16]} Bc8 {[%emt 0:00:19]} 29. Nd4 {[%emt 0:03:38]} Bb6 {[%emt 0:00:31]} 30. Ra8 {[%emt 0:00:17]} Bxd4 {[%emt 0:02:32]} 31. Bxd4 {[%emt 0:00:28]} Kf8 {[%emt 0:00:44]} 32. f5 {[%emt 0:01:37]} c5 {[%emt 0:00:30]} 33. Bb2 {[%emt 0:00:08]} Bb7 {[%emt 0:02:15]} 34. Ra7 {[%emt 0:01:06]} Rb8 {[%emt 0:00:41]} 35. Ba3 {[%emt 0:00:40]} Ra8 {[%emt 0:03:47]} 36. Rxa8+ {[%emt 0:00:26]} Bxa8 {[%emt 0:00:21]} 37. Bb5 {[%emt 0:01:14]} Nxe5 {[%emt 0:00:10]} 38. Bxc5+ {[%emt 0:00:03]} Kg8 {[%emt 0:00:10]} 39. g4 {[%emt 0:00:37]} Bc6 {[%emt 0:03:49]} 40. Be2 {[%emt 0:00:03]} Nd7 {[%emt 0:00:33]} 41. Bd6 {[%emt 0:00:11]} e5 {[%emt 0:00:16]} 42. h4 {[%emt 0:00:06]} f6 {[%emt 0:00:46]} 43. Kg3 {[%emt 0:00:16]} Kf7 {[%emt 0:00:29]} 44. Kf2 {[%emt 0:00:51]} Nb6 {[%emt 0:02:52]} 45. Ba6 {[%emt 0:00:47]} g6 {[%emt 0:00:58]} 46. Be2 {[%emt 0:01:30]} Bd7 {[%emt 0:01:35]} 47. Bc7 {[%emt 0:00:39]} Na4 {[%emt 0:00:56]} 48. fxg6+ {[%emt 0:00:56]} Kxg6 {[%emt 0:00:29]} 49. Ba5 {[%emt 0:00:38]} Nc5 {[%emt 0:00:40]} 50. Bb4 {[%emt 0:00:30]} Ne6 {[%emt 0:01:37]} 51. Ke3 {[%emt 0:01:43]} f5 {[%emt 0:01:14]} 52. h5+ {[%emt 0:01:13]} Kf6 {[%emt 0:00:13]} 53. gxf5 {[%emt 0:00:31]} Kxf5 {[%emt 0:00:18]} 54. Be7 {[%emt 0:01:01]} d4+ {[%emt 0:00:29]} 55. Kd2 {[%emt 0:00:37]} Be8 {[%emt 0:01:08]} 56. Bd1 {[%emt 0:00:47]} Nf4 {[%emt 0:01:16]} 57. Bf8 {[%emt 0:00:56]} Bxh5 {[%emt 0:00:27]} 58. Bxh5 {[%emt 0:00:23]} Nxh5 {[%emt 0:00:12]} 59. Bxh6 {[%emt 0:00:01]} e4 {[%emt 0:50:19]} 0-1

[Event "Elegant 1st Division League 2024"]
[Site "Dhaka"]
[Date "2024.07.18"]
[Round "8.15"]
[White "Tajane Ganesh"]
[Black "Asaduzzaman, Ahad"]
[Result "1/2-1/2"]
[Annotator "NA RC"]
[ECO "C55"]
[WhiteElo "1772"]
[BlackElo "1855"]
[PlyCount "78"]
[EventDate "2024.07.10"]
[EventType "team-tourn"]
[EventCountry "BAN"]
[SourceTitle "playchess.com"]
[Source "ChessBase"]
[SourceQuality "1"]
[TimeControl "5400+30"]

1. e4 {[%emt 0:00:06]} e5 {[%emt 0:00:12]} 2. Nf3 {[%emt 0:00:40]} Nc6 {[%emt 0:00:07]} 3. Bc4 {[%emt 0:00:07]} Be7 {[%emt 0:00:11]} 4. c3 {[%emt 0:00:33]} Nf6 {[%emt 0:00:10]} 5. d3 {[%emt 0:00:10]} d6 {[%emt 0:00:08]} 6. Bb3 {[%emt 0:00:07]} Bd7 {[%emt 0:00:10]} 7. Nbd2 {[%emt 0:00:10]} O-O {[%emt 0:00:51]} 8. Nf1 {[%emt 0:00:04]} Be6 {[%emt 0:00:24]} 9. h3 {[%emt 0:00:29]} Qd7 {[%emt 0:00:19]} 10. Ng3 {[%emt 0:00:27]} Rad8 {[%emt 0:00:18]} 11. Qe2 {[%emt 0:00:25]} Rfe8 {[%emt 0:00:21]} 12. Bxe6 {[%emt 0:00:53]} Qxe6 {[%emt 0:00:26]} 13. Nh4 {[%emt 0:00:21]} g6 {[%emt 0:00:41]} 14. O-O {[%emt 0:00:48]} d5 {[%emt 0:00:22]} 15. Nf3 {[%emt 0:00:35]} dxe4 {[%emt 0:00:39]} 16. dxe4 {[%emt 0:00:11]} Kg7 {[%emt 0:00:24]} 17. Bg5 {[%emt 0:01:15]} h6 {[%emt 0:00:15]} 18. Bxf6+ {[%emt 0:00:16]} Bxf6 {[%emt 0:00:04]} 19. Qb5 {[%emt 0:00:18]} b6 {[%emt 0:00:32]} 20. Qa4 {[%emt 0:00:37]} Rd6 {[%emt 0:00:24]} 21. Rfd1 {[%emt 0:00:10]} Red8 {[%emt 0:00:10]} 22. Rxd6 {[%emt 0:00:12]} Qxd6 {[%emt 0:00:19]} 23. Nf1 {[%emt 0:00:26]} a5 {[%emt 0:00:22]} 24. Ne3 {[%emt 0:00:08]} Ne7 {[%emt 0:00:23]} 25. Rd1 {[%emt 0:00:36]} Qc6 {[%emt 0:00:44]} 26. Qxc6 {[%emt 0:00:06]} Nxc6 {[%emt 0:00:04]} 27. Rxd8 {[%emt 0:00:30]} Nxd8 {[%emt 0:00:03]} 28. Nd5 {[%emt 0:00:13]} Ne6 {[%emt 0:00:15]} 29. Nd2 {[%emt 0:00:52]} g5 {[%emt 0:00:20]} 30. Kf1 {[%emt 0:00:49]} Kg6 {[%emt 0:00:15]} 31. Ke2 {[%emt 0:00:10]} Bd8 {[%emt 0:00:06]} 32. Nc4 {[%emt 0:00:15]} f6 {[%emt 0:00:13]} 33. f3 {[%emt 0:00:58]} Nf4+ {[%emt 0:00:18]} 34. Nxf4+ {[%emt 0:00:04]} gxf4 {[%emt 0:00:03]} 35. a4 {[%emt 0:00:11]} Kf7 {[%emt 0:00:59]} 36. Kd3 {[%emt 0:00:03]} Ke6 {[%emt 0:00:16]} 37. Na3 {[%emt 0:00:09]} c6 {[%emt 0:00:15]} 38. Kc4 {[%emt 0:00:07]} Be7 {[%emt 0:01:00]} 39. Nc2 {[%emt 0:00:05]} Kd6 {[%emt 0:00:54]} 1/2-1/2

[Event "Elegant 1st Division League 2024"]
[Site "Dhaka"]
[Date "2024.07.18"]
[Round "8.16"]
[White "Shejal Sahil Sanjay"]
[Black "Bhuiyan, Golam Mostafa"]
[Result "1-0"]
[Annotator "RC"]
[ECO "B22"]
[WhiteElo "1750"]
[BlackElo "2078"]
[PlyCount "83"]
[EventDate "2024.07.10"]
[EventType "team-tourn"]
[EventCountry "BAN"]
[SourceTitle "playchess.com"]
[Source "ChessBase"]
[SourceQuality "1"]
[TimeControl "5400+30"]

1. e4 {[%emt 0:00:05]} c5 {[%emt 0:00:00]} 2. c3 {[%emt 0:00:06]} Nf6 {[%emt 0:00:00]} 3. e5 {[%emt 0:00:02]} Nd5 {[%emt 0:00:00]} 4. d4 {[%emt 0:00:01]} e6 {[%emt 0:00:00]} 5. Nf3 {[%emt 0:00:05]} Qc7 {[%emt 0:00:13]} 6. c4 {[%emt 0:00:13]} Nb6 {[%emt 0:00:04]} 7. d5 {[%emt 0:00:03]} d6 {[%emt 0:00:15]} 8. Nc3 {[%emt 0:00:24]} a6 {[%emt 0:00:15]} 9. Bf4 {[%emt 0:01:41]} Be7 {[%emt 0:03:01]} 10. Ne4 {[%emt 0:00:17]} dxe5 {[%emt 0:04:02]} 11. Bxe5 {[%emt 0:00:09]} Qd8 {[%emt 0:00:15]} 12. d6 {[%emt 0:01:49]} Bf6 {[%emt 0:00:06]} 13. Bxf6 {[%emt 0:03:30]} gxf6 {[%emt 0:00:02]} 14. Nxc5 {[%emt 0:00:03]} O-O {[%emt 0:00:22]} 15. Rc1 {[%emt 0:01:40]} Nc6 {[%emt 0:00:04]} 16. Be2 {[%emt 0:00:41]} e5 {[%emt 0:00:18]} 17. O-O {[%emt 0:00:34]} Rb8 {[%emt 0:00:02]} 18. Qd2 {[%emt 0:02:22]} Bf5 {[%emt 0:00:06]} 19. Nh4 {[%emt 0:00:15]} Bg6 {[%emt 0:00:06]} 20. f4 {[%emt 0:00:04]} f5 {[%emt 0:00:22]} 21. Nxg6 {[%emt 0:00:46]} hxg6 {[%emt 0:00:06]} 22. a4 {[%emt 0:01:24]} e4 {[%emt 0:00:06]} 23. a5 {[%emt 0:00:05]} Nd7 {[%emt 0:00:15]} 24. Nxd7 {[%emt 0:00:24]} Qxd7 {[%emt 0:00:02]} 25. c5 {[%emt 0:00:25]} Rbc8 {[%emt 0:00:11]} 26. Bc4 {[%emt 0:00:32]} Nd8 {[%emt 0:00:18]} 27. Rc3 {[%emt 0:00:52]} Ne6 {[%emt 0:00:07]} 28. b4 {[%emt 0:00:05]} Rfd8 {[%emt 0:00:11]} 29. Qb2 {[%emt 0:00:30]} Re8 {[%emt 0:00:23]} 30. Rh3 {[%emt 0:00:17]} Ng7 {[%emt 0:00:05]} 31. Qf6 {[%emt 0:00:13]} Re6 {[%emt 0:00:45]} 32. Bxe6 {[%emt 0:00:11]} Qxe6 {[%emt 0:00:03]} 33. Qh4 {[%emt 0:00:55]} Nh5 {[%emt 0:00:05]} 34. Rd1 {[%emt 0:00:13]} Qd7 {[%emt 0:00:09]} 35. Qe7 {[%emt 0:00:28]} Qxe7 {[%emt 0:00:08]} 36. dxe7 {[%emt 0:00:02]} Re8 {[%emt 0:00:20]} 37. Rd8 {[%emt 0:00:05]} Ng7 {[%emt 0:00:09]} 38. b5 {[%emt 0:00:07]} f6 {[%emt 0:00:42]} 39. c6 {[%emt 0:00:09]} bxc6 {[%emt 0:00:08]} 40. b6 {[%emt 0:00:09]} Kf7 {[%emt 0:00:04]} 41. Rxe8 {[%emt 0:00:04]} Nxe8 {[%emt 0:00:16]} 42. b7 {[%emt 0:00:04]} 1-0

[Event "Elegant 1st Division League 2024"]
[Site "Dhaka"]
[Date "2024.07.18"]
[Round "8.17"]
[White "Vrashank Chouhan"]
[Black "Shafiqul, Islam"]
[Result "1-0"]
[Annotator "RC"]
[ECO "E49"]
[WhiteElo "2209"]
[BlackElo "1937"]
[PlyCount "45"]
[EventDate "2024.07.10"]
[EventType "team-tourn"]
[EventCountry "BAN"]
[SourceTitle "playchess.com"]
[Source "ChessBase"]
[SourceQuality "1"]
[TimeControl "5400+30"]

1. d4 {[%emt 0:00:44]} Nf6 {[%emt 0:00:43]} 2. c4 {[%emt 0:00:08]} e6 {[%emt 0:00:55]} 3. Nc3 {[%emt 0:01:04]} Bb4 {[%emt 0:00:34]} 4. e3 {[%emt 0:00:45]} O-O {[%emt 0:00:53]} 5. Bd3 {[%emt 0:00:15]} d5 {[%emt 0:00:32]} 6. a3 {[%emt 0:00:18]} Bxc3+ {[%emt 0:01:04]} 7. bxc3 {[%emt 0:00:03]} c5 {[%emt 0:02:33]} 8. cxd5 {[%emt 0:00:38]} exd5 {[%emt 0:00:50]} 9. Ne2 {[%emt 0:00:06]} Nc6 {[%emt 0:07:26]} 10. O-O {[%emt 0:00:09]} Re8 {[%emt 0:06:26]} 11. f3 {[%emt 0:01:05]} a6 {[%emt 0:14:18]} 12. Nf4 {[%emt 0:05:33]} c4 {[%emt 0:04:38]} 13. Bc2 {[%emt 0:02:28]} b5 {[%emt 0:00:29]} 14. g4 {[%emt 0:10:35]} h6 {[%emt 0:02:09]} 15. Qe1 {[%emt 0:01:45]} g5 {[%emt 0:54:30]} 16. Ng2 {[%emt 0:04:23]} Qc7 {[%emt 0:00:00]} 17. h4 {[%emt 0:14:03]} Bxg4 {[%emt 0:00:00]} 18. hxg5 {[%emt 0:00:13]} hxg5 {[%emt 0:00:00]} 19. e4 {[%emt 0:00:04]} dxe4 {[%emt 0:00:00]} 20. Qe3 {[%emt 0:07:23]} exf3 {[%emt 0:00:00]} 21. Qxg5+ {[%emt 0:00:50]} Kf8 {[%emt 0:03:00]} 22. Qxf6 {[%emt 0:06:57]} Re6 {[%emt 0:00:00]} 23. Qh8+ 1-0

[Event "Elegant 1st Division League 2024"]
[Site "Dhaka"]
[Date "2024.07.18"]
[Round "8.18"]
[White "Soumyajit Das"]
[Black "Tutul, Dhar"]
[Result "0-1"]
[Annotator "RC"]
[ECO "B12"]
[WhiteElo "1850"]
[BlackElo "2008"]
[PlyCount "101"]
[EventDate "2024.07.10"]
[EventType "team-tourn"]
[EventCountry "BAN"]
[SourceTitle "playchess.com"]
[Source "ChessBase"]
[SourceQuality "1"]
[TimeControl "5400+30"]

1. e4 {[%emt 0:00:16]} c6 {[%emt 0:00:14]} 2. d4 {[%emt 0:00:08]} d5 {[%emt 0:00:04]} 3. e5 {[%emt 0:00:07]} Bf5 {[%emt 0:00:05]} 4. h4 {[%emt 0:00:11]} h5 {[%emt 0:01:40]} 5. Bd3 {[%emt 0:00:12]} Bxd3 {[%emt 0:00:12]} 6. Qxd3 {[%emt 0:00:05]} e6 {[%emt 0:00:10]} 7. Nf3 {[%emt 0:03:27]} Ne7 {[%emt 0:00:41]} 8. Bg5 {[%emt 0:07:58]} Qa5+ {[%emt 0:00:21]} 9. Nbd2 {[%emt 0:00:12]} Qa6 {[%emt 0:02:32]} 10. Qxa6 {[%emt 0:11:25]} Nxa6 {[%emt 0:00:03]} 11. a3 {[%emt 0:13:35]} c5 {[%emt 0:07:17]} 12. dxc5 {[%emt 0:05:54]} Nxc5 {[%emt 0:00:03]} 13. b4 {[%emt 0:00:10]} Na4 {[%emt 0:01:40]} 14. c4 {[%emt 0:06:02]} dxc4 {[%emt 0:11:37]} 15. Bxe7 {[%emt 0:06:20]} Bxe7 {[%emt 0:01:03]} 16. Nxc4 {[%emt 0:00:27]} O-O {[%emt 0:00:43]} 17. O-O {[%emt 0:07:17]} Rac8 {[%emt 0:00:42]} 18. Rac1 {[%emt 0:00:33]} Rfd8 {[%emt 0:08:35]} 19. Nd6 {[%emt 0:13:19]} Bxd6 {[%emt 0:01:34]} 20. exd6 {[%emt 0:00:42]} Nc3 {[%emt 0:00:56]} 21. Rc2 {[%emt 0:05:09]} Rxd6 {[%emt 0:02:40]} 22. Kh2 {[%emt 0:00:13]} Rdc6 {[%emt 0:02:14]} 23. Ne5 {[%emt 0:02:53]} R6c7 {[%emt 0:00:10]} 24. Rfc1 {[%emt 0:08:27]} Nd5 {[%emt 0:00:37]} 25. Rc5 {[%emt 0:03:05]} f6 {[%emt 0:07:17]} 26. Nd3 {[%emt 0:01:38]} b6 {[%emt 0:00:16]} 27. Rxc7 {[%emt 0:00:11]} Rxc7 {[%emt 0:00:03]} 28. Rxc7 {[%emt 0:00:14]} Nxc7 {[%emt 0:00:19]} 29. Nf4 {[%emt 0:00:08]} Kf7 {[%emt 0:02:46]} 30. Nxh5 {[%emt 0:00:20]} Nb5 {[%emt 0:01:28]} 31. a4 {[%emt 0:01:26]} Nc3 {[%emt 0:00:11]} 32. a5 {[%emt 0:00:19]} Nd5 {[%emt 0:00:58]} 33. axb6 {[%emt 0:00:08]} axb6 {[%emt 0:00:01]} 34. Ng3 {[%emt 0:00:57]} Nxb4 {[%emt 0:00:30]} 35. Ne4 {[%emt 0:00:07]} Ke7 {[%emt 0:02:11]} 36. Kg3 {[%emt 0:01:03]} Nd3 {[%emt 0:00:27]} 37. f4 {[%emt 0:02:15]} f5 {[%emt 0:02:31]} 38. Nc3 {[%emt 0:00:33]} Kd6 {[%emt 0:00:17]} 39. Kf3 {[%emt 0:01:36]} Kc5 {[%emt 0:00:34]} 40. Ke3 {[%emt 0:00:35]} Kc4 {[%emt 0:01:52]} 41. Na4 {[%emt 0:00:43]} b5 {[%emt 0:00:14]} 42. Nb6+ {[%emt 0:00:08]} Kc3 {[%emt 0:00:09]} 43. h5 {[%emt 0:00:17]} Nc5 {[%emt 0:00:51]} 44. Nc8 {[%emt 0:01:06]} b4 {[%emt 0:01:33]} 45. Nd6 {[%emt 0:00:11]} b3 {[%emt 0:00:08]} 46. Nb5+ {[%emt 0:00:34]} Kb4 {[%emt 0:00:06]} 47. Nd4 {[%emt 0:00:12]} b2 {[%emt 0:00:44]} 48. Nc2+ {[%emt 0:00:08]} Kb3 {[%emt 0:00:32]} 49. Nd4+ {[%emt 0:00:22]} Ka4 {[%emt 0:00:20]} 50. Ne2 {[%emt 0:00:06]} Ne4 {[%emt 0:00:32]} 51. Kd4 {[%emt 0:02:36]} 0-1

[Event "Elegant 1st Division League 2024"]
[Site "Dhaka"]
[Date "2024.07.18"]
[Round "8.19"]
[White "Dakshita Kumawat"]
[Black "Saparya Ghosh"]
[Result "1/2-1/2"]
[Annotator "RC"]
[ECO "D02"]
[WhiteElo "1928"]
[BlackElo "1833"]
[PlyCount "103"]
[EventDate "2024.07.10"]
[EventType "team-tourn"]
[EventCountry "BAN"]
[SourceTitle "playchess.com"]
[Source "ChessBase"]
[SourceQuality "1"]
[TimeControl "5400+30"]

1. d4 {[%emt 0:01:57]} Nf6 {[%emt 0:00:22]} 2. Bf4 {[%emt 0:00:04]} d5 {[%emt 0:00:10]} 3. e3 {[%emt 0:00:04]} c5 {[%emt 0:00:05]} 4. Nf3 {[%emt 0:00:08]} Nc6 {[%emt 0:00:06]} 5. Nbd2 {[%emt 0:00:05]} e6 {[%emt 0:00:25]} 6. c3 {[%emt 0:00:02]} cxd4 {[%emt 0:00:08]} 7. exd4 {[%emt 0:00:03]} Nh5 {[%emt 0:00:09]} 8. Be3 {[%emt 0:00:02]} Bd6 {[%emt 0:00:09]} 9. Bd3 {[%emt 0:00:04]} Nf4 {[%emt 0:00:11]} 10. Bxf4 {[%emt 0:00:04]} Bxf4 {[%emt 0:00:08]} 11. g3 {[%emt 0:00:02]} Bd6 {[%emt 0:00:10]} 12. O-O {[%emt 0:00:06]} O-O {[%emt 0:01:11]} 13. Re1 {[%emt 0:00:04]} Bd7 {[%emt 0:12:55]} 14. Rc1 {[%emt 0:00:34]} Rc8 {[%emt 0:00:58]} 15. b4 {[%emt 0:09:10]} Re8 {[%emt 0:04:26]} 16. Nf1 {[%emt 0:17:32]} g6 {[%emt 0:12:40]} 17. Ne3 {[%emt 0:07:27]} Bf8 {[%emt 0:01:58]} 18. Ng4 {[%emt 0:04:47]} f6 {[%emt 0:06:22]} 19. Qb3 {[%emt 0:06:47]} Kg7 {[%emt 0:07:11]} 20. Ne3 {[%emt 0:01:12]} Qb6 {[%emt 0:04:37]} 21. h4 {[%emt 0:05:41]} Ne7 {[%emt 0:19:00]} 22. a4 {[%emt 0:08:18]} Qd6 {[%emt 0:04:17]} 23. Ng2 {[%emt 0:11:47]} Nc6 {[%emt 0:06:16]} 24. Rcd1 {[%emt 0:01:13]} e5 {[%emt 0:07:44]} 25. dxe5 {[%emt 0:00:21]} fxe5 {[%emt 0:04:28]} 26. Be4 {[%emt 0:04:47]} d4 {[%emt 0:01:54]} 27. Ng5 {[%emt 0:02:57]} Qf6 {[%emt 0:02:33]} 28. Bxc6 Bxc6 29. cxd4 {[%emt 0:06:23]} h6 {[%emt 0:03:52]} 30. dxe5 {[%emt 0:00:43]} Qe7 {[%emt 0:00:19]} 31. Ne4 {[%emt 0:05:46]} Qxb4 {[%emt 0:00:12]} 32. Qf3 {[%emt 0:02:47]} Be7 {[%emt 0:00:33]} 33. Nf4 {[%emt 0:00:11]} Bd7 {[%emt 0:00:57]} 34. Nd5 {[%emt 0:01:21]} Qa3 {[%emt 0:00:31]} 35. Nxe7 {[%emt 0:02:13]} Qxf3 {[%emt 0:00:17]} 36. Rxd7 {[%emt 0:00:12]} Rcd8 {[%emt 0:00:36]} 37. Rxb7 {[%emt 0:01:22]} Rd1 {[%emt 0:00:36]} 38. Rxd1 {[%emt 0:00:01]} Qxd1+ {[%emt 0:00:09]} 39. Kg2 {[%emt 0:00:01]} Rxe7 {[%emt 0:00:51]} 40. Rxe7+ {[%emt 0:00:02]} Kf8 {[%emt 0:00:03]} 41. Rxa7 {[%emt 0:01:23]} Qd5 {[%emt 0:00:37]} 42. f3 {[%emt 0:00:04]} Qxe5 {[%emt 0:00:38]} 43. a5 {[%emt 0:01:00]} Qb2+ {[%emt 0:00:38]} 44. Nf2 {[%emt 0:00:02]} Qb8 {[%emt 0:00:19]} 45. Ra6 {[%emt 0:00:03]} Kg7 {[%emt 0:00:34]} 46. Rb6 {[%emt 0:00:35]} Qa7 {[%emt 0:00:19]} 47. Rb5 {[%emt 0:00:02]} Qa6 {[%emt 0:00:26]} 48. Rc5 {[%emt 0:00:03]} h5 {[%emt 0:00:37]} 49. Rg5 {[%emt 0:01:11]} Kh6 {[%emt 0:00:28]} 50. Rc5 {[%emt 0:00:32]} Qe2 {[%emt 0:00:41]} 51. Rg5 {[%emt 0:01:31]} Kh7 {[%emt 0:00:27]} 52. Rc5 {[%emt 0:00:52]} 1/2-1/2

[Event "Elegant 1st Division League 2024"]
[Site "Dhaka"]
[Date "2024.07.18"]
[Round "8.20"]
[White "Ajraf, Anan"]
[Black "Jamal Uddin"]
[Result "0-1"]
[Annotator "RC"]
[ECO "B47"]
[WhiteElo "1781"]
[BlackElo "1963"]
[PlyCount "120"]
[EventDate "2024.07.10"]
[EventType "team-tourn"]
[EventCountry "BAN"]
[SourceTitle "playchess.com"]
[Source "ChessBase"]
[SourceQuality "1"]
[TimeControl "5400+30"]

1. e4 {[%emt 0:00:03]} c5 {[%emt 0:00:29]} 2. Nf3 {[%emt 0:00:06]} Nc6 {[%emt 0:00:11]} 3. d4 {[%emt 0:00:08]} cxd4 {[%emt 0:00:11]} 4. Nxd4 {[%emt 0:00:08]} Qc7 {[%emt 0:00:28]} 5. Nc3 {[%emt 0:02:23]} e6 {[%emt 0:00:07]} 6. Be2 {[%emt 0:03:18]} a6 {[%emt 0:00:21]} 7. O-O {[%emt 0:01:46]} Nf6 {[%emt 0:00:23]} 8. Bg5 {[%emt 0:02:57]} Be7 {[%emt 0:00:26]} 9. Qd2 {[%emt 0:01:30]} b5 {[%emt 0:01:00]} 10. a3 {[%emt 0:03:26]} Bb7 {[%emt 0:00:22]} 11. Rad1 {[%emt 0:03:23]} Rc8 {[%emt 0:09:06]} 12. Bxf6 {[%emt 0:04:33]} gxf6 {[%emt 0:00:45]} 13. Nxc6 {[%emt 0:06:27]} Bxc6 {[%emt 0:00:23]} 14. f4 {[%emt 0:01:28]} h5 {[%emt 0:00:51]} 15. Bf3 {[%emt 0:04:31]} h4 {[%emt 0:02:13]} 16. e5 {[%emt 0:04:20]} f5 {[%emt 0:00:31]} 17. Ne2 {[%emt 0:03:32]} h3 {[%emt 0:02:36]} 18. g3 {[%emt 0:10:02]} Bc5+ {[%emt 0:05:00]} 19. Nd4 {[%emt 0:04:54]} Qb7 {[%emt 0:01:57]} 20. Qe2 {[%emt 0:02:37]} Kf8 {[%emt 0:05:50]} 21. Be4 {[%emt 0:39:28]} Bd5 22. Bxd5 {[%emt 0:00:00]} Rc7 {[%emt 1:08:20]} 23. Bc6 Rxc6 {[%emt 0:00:00]} 24. Qf3 {[%emt 0:00:00]} Qb6 {[%emt 0:00:00]} 25. c3 {[%emt 0:00:00]} d5 {[%emt 0:00:00]} 26. Kh1 {[%emt 0:00:00]} Bxd4 {[%emt 0:00:00]} 27. Rxd4 {[%emt 0:00:00]} Rc4 {[%emt 0:00:00]} 28. Rfd1 {[%emt 0:00:00]} a5 {[%emt 0:00:00]} 29. g4 {[%emt 0:00:00]} fxg4 {[%emt 0:00:00]} 30. Qxg4 {[%emt 0:00:00]} Qd8 {[%emt 0:00:00]} 31. Rg1 {[%emt 0:00:00]} Qh4 {[%emt 0:00:00]} 32. Qg3 {[%emt 0:00:00]} Rxd4 {[%emt 0:00:00]} 33. cxd4 {[%emt 0:00:00]} Qh7 {[%emt 0:00:00]} 34. Qe3 {[%emt 0:00:00]} Qc2 {[%emt 0:00:00]} 35. b3 {[%emt 0:00:00]} a4 {[%emt 0:00:00]} 36. bxa4 {[%emt 0:00:00]} bxa4 {[%emt 0:00:00]} 37. Qe1 {[%emt 0:00:00]} Qb3 {[%emt 0:00:00]} 38. Qg3 {[%emt 0:00:00]} Ke7 {[%emt 0:00:00]} 39. Rc1 {[%emt 0:01:30]} Rc8 {[%emt 0:00:00]} 40. Rg1 {[%emt 0:04:03]} Rc2 {[%emt 0:00:00]} 41. Qh4+ {[%emt 0:01:36]} Kd7 {[%emt 0:00:00]} 42. Qh5 {[%emt 0:01:16]} Kc6 {[%emt 0:00:00]} 43. f5 {[%emt 0:01:33]} Qe3 {[%emt 0:00:00]} 44. Qg4 {[%emt 0:00:52]} Kb5 {[%emt 0:00:00]} 45. fxe6 {[%emt 0:00:28]} fxe6 {[%emt 0:00:00]} 46. Rb1+ {[%emt 0:00:31]} Kc4 {[%emt 0:00:00]} 47. Rg1 {[%emt 0:00:35]} Rc1 {[%emt 0:00:00]} 48. Rxc1+ {[%emt 0:00:33]} Qxc1+ {[%emt 0:00:00]} 49. Qg1 {[%emt 0:00:13]} Qxg1+ {[%emt 0:00:00]} 50. Kxg1 {[%emt 0:00:02]} Kxd4 {[%emt 0:00:00]} 51. Kf2 {[%emt 0:00:14]} Kxe5 {[%emt 0:00:00]} 52. Kg3 {[%emt 0:00:35]} d4 {[%emt 0:00:00]} 53. Kf3 {[%emt 0:00:17]} Kd5 {[%emt 0:00:00]} 54. Ke2 {[%emt 0:00:08]} e5 {[%emt 0:00:00]} 55. Kd3 {[%emt 0:00:10]} e4+ {[%emt 0:00:00]} 56. Kd2 {[%emt 0:00:14]} Kc4 {[%emt 0:00:00]} 57. Kc2 {[%emt 0:00:21]} e3 {[%emt 0:00:00]} 58. Kd1 {[%emt 0:00:17]} d3 {[%emt 0:00:00]} 59. Ke1 {[%emt 0:00:50]} Kc3 {[%emt 0:00:00]} 60. Kd1 {[%emt 0:00:12]} d2 {[%emt 0:00:00]} 0-1